bitfinex-derivatives/quotes_ETHF0:USTF0_20250501
["timestamp","ask_amount","ask_price","bid_price","bid_amount"]
[1746106220706,6.9958,1849.9,1849.8,56.64707672]
[1746106221307,4.28877,1849.9,1849.8,14.76604672]
[1746106221710,1.08103,1849.8,1849.7,1.6419]
[1746106221909,1.50110576,1849.8,1849.7,1.6419]
[1746106222311,0.42007576,1849.8,1849.7,1.6419]
[1746106222609,3.2078,1849.9,1849.7,16.40794672]
[1746106222807,3.2078,1849.9,1849.8,14.76604672]
[1746106223110,1.08135,1849.3,1849.2,1.08138]
[1746106223414,4.28906,1849.4,1849.3,14.76604672]
[1746106223607,1.08132,1849.3,1849.2,40.8]
[1746106223808,4.2891,1849.4,1849.3,14.76604672]
[1746106224107,8.0771,1849.4,1849.3,14.76604672]
[1746106224310,3.788,1849.4,1849.3,15.84736672]
[1746106224607,3.788,1849.4,1849.3,17.48196672]
[1746106225215,1.08126,1849.4,1849.3,16.40064672]
[1746106225611,4.28906,1849.4,1849.3,1.6346]
[1746106225914,1.08143,1849.2,1849.1,1.08144]
[1746106226419,1.08138,1849.2,1849.1,56.64748672]
[1746106226601,1.08138,1849.2,1849.1,55.56604672]
[1746106227007,1.08138,1849.2,1849.1,56.64746672]
[1746106227204,3.2078,1849.4,1849.1,55.56604672]
[1746106227405,1.08129,1849.4,1849.3,15.84734672]
[1746106227810,1.08122,1849.5,1849.4,1.08122]
[1746106228314,1.08122,1849.5,1849.4,14.76604672]
[1746106228506,1.08122,1849.5,1849.4,15.84730672]
[1746106228706,1.08117,1849.6,1849.5,1.08121]
[1746106228911,1.08115,1849.6,1849.5,14.76604672]
[1746106229713,1.08121,1849.5,1849.4,1.6689]
[1746106229918,2.81571,1849.5,1849.4,1.6689]
[1746106231216,2.81571,1849.5,1849.4,16.43494672]
[1746106231217,4.86921,1849.5,1849.4,16.43494672]
[1746106231418,1.0811,1849.7,1849.6,1.08109]
[1746106231616,1.0811,1849.7,1849.6,15.84713672]
[1746106231810,1.0811,1849.7,1849.6,14.76604672]
[1746106232006,1.0811,1849.7,1849.6,16.44884672]
[1746106233109,1.50071735,1849.7,1849.6,16.44884672]
[1746106233313,1.0811,1849.7,1849.6,16.44884672]
[1746106233508,1.0811,1849.7,1849.6,17.52999672]
[1746106233920,3.2078,1849.8,1849.6,16.44884672]
[1746106234115,4.28889,1849.8,1849.7,17.52993672]
[1746106234616,4.28889,1849.8,1849.7,16.44884672]
[1746106235512,4.70933178,1849.8,1849.7,16.44884672]
[1746106236109,8.49733178,1849.8,1849.7,16.44884672]
[1746106237219,8.49733178,1849.8,1849.7,1.6828]
[1746106237417,8.07689,1849.8,1849.7,1.6828]
[1746106237613,8.49871644,1849.8,1849.7,1.6828]
[1746106237920,8.49871644,1849.8,1849.7,17.52993672]
[1746106238222,0.42182644,1849.8,1849.7,17.52993672]
[1746106238516,1.50285644,1849.8,1849.7,17.52993672]
[1746106238928,0.42182644,1849.8,1849.7,17.52993672]
[1746106239218,3.2078,1850.2,1850.1,1.08086]
[1746106239425,1.08075,1850.3,1850.2,1.08073]
[1746106239715,4.28855,1850.3,1850.2,2.60853]
[1746106239910,3.2078,1850.3,1850.2,17.37457672]
[1746106240110,1.08074,1850.3,1850.2,16.29384672]
[1746106240818,1.08072,1850.4,1850.3,1.08071]
[1746106241129,1.08072,1850.4,1850.3,2.72431]
[1746106241318,1.08072,1850.4,1850.3,17.49035672]
[1746106241520,1.08072,1850.4,1850.3,57.20964672]
[1746106242422,1.08072,1850.4,1850.3,58.62984672]
[1746106243021,4.28847,1850.5,1850.4,1.08068]
[1746106243220,1.08067,1850.5,1850.4,17.49032672]
[1746106243427,1.08054,1850.7,1850.6,1.08052]
[1746106243722,1.08054,1850.7,1850.6,15.84656672]
[1746106243913,1.08042,1850.9,1850.8,1.08041]
[1746106244112,1.08042,1850.9,1850.8,15.84645672]
[1746106244523,1.08042,1850.9,1850.8,16.14374672]
[1746106244722,1.08042,1850.9,1850.8,1.3777]
[1746106244916,1.08042,1850.9,1850.8,17.22419672]
[1746106245223,1.08042,1850.9,1850.8,16.14374672]
[1746106247626,1.08042,1850.9,1850.8,14.76604672]
[1746106247926,1.08051,1850.7,1850.6,40.8]
[1746106248120,4.28831,1850.7,1850.6,40.8]
[1746106248322,8.07631,1850.7,1850.6,40.8]
[1746106249027,1.08056,1850.6,1850.5,1.5794]
[1746106249421,1.08056,1850.6,1850.5,57.14544672]
[1746106249618,1.08056,1850.6,1850.5,58.22606672]
[1746106249823,1.08056,1850.6,1850.5,57.14544672]
[1746106250024,1.08056,1850.6,1850.5,58.22606672]
[1746106250526,1.08056,1850.6,1850.5,57.14544672]
[1746106251321,1.08056,1850.6,1850.5,58.22606672]
[1746106251518,1.08056,1850.7,1850.6,1.08054]
[1746106251723,1.08041,1850.9,1850.8,1.0804]
[1746106252026,3.56374198,1851.1,1851.0,1.08033]
[1746106252218,3.56374198,1851.1,1851.0,19.05417672]
[1746106252417,3.56374198,1851.1,1851.0,24.05417672]
[1746106252625,5.35629367,1851.2,1851.1,1.08027]
[1746106252829,5.35629367,1851.2,1851.1,17.55311672]
[1746106253028,5.35629367,1851.2,1851.1,22.55311672]
[1746106253418,5.35629367,1851.2,1851.1,26.17411672]
[1746106253823,5.35629367,1851.2,1851.1,21.17411672]
[1746106254027,5.35629367,1851.2,1851.1,16.47284672]
[1746106254229,1.08021,1851.2,1851.1,17.55311672]
[1746106254622,12.84636367,1851.6,1851.1,16.47284672]
[1746106254822,1.0801,1851.4,1851.3,14.76604672]
[1746106255030,4.2879,1851.4,1851.3,14.76604672]
[1746106255218,1.0801,1851.4,1851.3,14.76604672]
[1746106255417,4.2879,1851.4,1851.3,14.76604672]
[1746106255629,1.08015,1851.3,1851.2,1.7068]
[1746106255830,1.08015,1851.3,1851.2,16.47284672]
[1746106256030,2.75575,1851.3,1851.2,1.7068]
[1746106256527,1.08033,1851.0,1850.9,2.9463]
[1746106256924,1.08033,1851.0,1850.9,17.71234672]
[1746106258130,1.08033,1851.0,1850.9,19.35984672]
[1746106258631,1.08033,1851.0,1850.9,20.44023672]
[1746106259126,1.08033,1851.0,1850.9,19.35984672]
[1746106259318,1.08033,1851.0,1850.9,16.41354672]
[1746106259525,1.08033,1851.0,1850.9,1.6475]
[1746106259725,4.28811,1851.1,1851.0,1.08033]
[1746106260029,4.28811,1851.1,1851.0,17.27097672]
[1746106260331,3.2078,1851.1,1851.0,18.91817672]
[1746106260530,6.43637367,1851.5,1851.1,2.7006]
[1746106260731,5.35629367,1851.5,1851.4,19.05394672]
[1746106261129,7.20293741,1851.6,1851.5,1.08004]
[1746106261332,6.27570917,1851.7,1851.6,15.84602672]
[1746106261530,6.27570917,1851.7,1851.6,19.05382672]
[1746106261731,6.27570917,1851.7,1851.6,24.05382672]
[1746106261933,6.27570917,1851.7,1851.6,15.84602672]
[1746106262237,6.27570917,1851.7,1851.6,19.05382672]
[1746106262838,6.27570917,1851.7,1851.6,15.84602672]
[1746106263134,7.35562917,1851.7,1851.6,18.38604672]
[1746106263330,1.07998,1851.6,1851.5,3.788]
[1746106263528,5.89678,1851.6,1851.5,3.788]
[1746106263732,2.68898,1851.6,1851.5,18.55404672]
[1746106263935,2.68898,1851.6,1851.5,3.788]
[1746106264131,1.08004,1851.5,1851.4,40.8]
[1746106264338,2.68904,1851.5,1851.4,40.8]
[1746106264530,1.08015,1851.3,1851.2,3.0482]
[1746106264838,1.08021,1851.2,1851.1,4.70027]
[1746106265137,1.08021,1851.3,1851.2,14.76604672]
[1746106265435,1.08007,1851.5,1851.4,15.84614672]
[1746106265735,1.07996,1851.7,1851.6,1.07996]
[1746106265933,1.07996,1851.7,1851.6,15.84600672]
[1746106266122,1.07996,1851.7,1851.6,14.76604672]
[1746106266327,1.07998,1851.6,1851.5,5.5247]
[1746106266536,2.68967,1851.7,1851.5,20.29074672]
[1746106266730,2.68962,1851.7,1851.6,15.84602672]
[1746106267234,1.6097,1851.7,1851.6,15.84602672]
[1746106267439,2.68962,1851.7,1851.6,14.76604672]
[1746106267625,2.68962,1851.7,1851.5,3.788]
[1746106267626,1.07998,1851.6,1851.5,3.788]
[1746106267830,5.89748,1851.6,1851.5,18.55404672]
[1746106268434,2.68968,1851.6,1851.5,19.63408672]
[1746106268837,2.68968,1851.6,1851.5,18.55404672]
[1746106269038,2.68968,1851.6,1851.5,21.33328672]
[1746106269228,1.07997,1851.7,1851.6,1.07995]
[1746106269632,3.2078,1852.1,1851.6,17.97384672]
[1746106269932,2.70968,1852.2,1852.1,15.84573672]
[1746106270330,1.07959,1852.3,1852.2,1.07958]
[1746106270633,1.07959,1852.3,1852.2,14.76604672]
[1746106272238,2.70956,1852.4,1852.2,14.76604672]
[1746106272439,1.07957,1852.3,1852.2,14.76604672]
[1746106272742,2.81687,1852.3,1852.2,14.76604672]
[1746106273042,1.07957,1852.3,1852.2,55.56604672]
[1746106274240,1.07957,1852.3,1852.2,56.64567672]
[1746106274436,1.07957,1852.3,1852.2,55.56604672]
[1746106275042,1.07957,1852.3,1852.2,40.8]
[1746106275340,14.5518,1852.3,1851.4,5.90804]
[1746106275537,1.07985,1851.9,1851.8,15.84589672]
[1746106275839,1.07985,1851.9,1851.8,55.56604672]
[1746106276044,4.28765,1851.9,1851.8,40.8]
[1746106276233,1.07985,1851.9,1851.8,40.8]
[1746106276530,1.0801,1851.4,1851.3,7.7159]
[1746106276729,1.0801,1851.4,1851.3,9.2917]
[1746106276933,2.70039,1851.3,1850.5,6.8528]
[1746106277138,2.70069,1851.1,1850.7,14.76604672]
[1746106277346,1.08051,1850.7,1850.6,14.76604672]
[1746106277642,1.08067,1850.5,1850.3,1.08071]
[1746106277845,1.08067,1850.5,1850.3,2.73141]
[1746106278042,1.08062,1850.5,1850.4,14.76604672]
[1746106278538,1.08074,1850.3,1850.2,8.5035]
[1746106278732,5.90953,1850.4,1849.8,4.72601]
[1746106278940,5.90953,1850.4,1849.7,10.6821524]
[1746106278941,2.70229,1850.0,1849.7,10.6821524]
[1746106279132,1.08103,1849.8,1849.7,10.6821524]
[1746106279335,4.28883,1849.8,1849.7,51.4821524]
[1746106279537,4.28883,1849.8,1849.7,10.6821524]
[1746106279737,7.93483,1849.8,1849.7,10.6821524]
[1746106280239,3.788,1849.8,1849.7,31.52928912]
[1746106280444,3.788,1849.8,1849.7,33.19248912]
[1746106280643,2.60148,1849.8,1849.7,63.31033672]
[1746106280838,1.08068,1850.4,1850.2,1.08077]
[1746106281038,1.08068,1850.4,1850.2,12.16456672]
[1746106281546,3.2078,1850.6,1850.4,1.08068]
[1746106281746,3.2078,1850.6,1850.5,13.24518672]
[1746106282041,1.08078,1850.3,1850.1,4.28863]
[1746106282239,1.08079,1850.3,1850.0,8.51488]
[1746106282443,1.08079,1850.3,1850.1,13.24539672]
[1746106282639,1.08086,1850.1,1850.0,7.434]
[1746106282842,3.2078,1850.4,1850.1,12.16456672]
[1746106283242,3.2078,1850.4,1849.8,2.74419]
[1746106283439,3.2078,1850.4,1849.7,49.2269]
[1746106283440,1.08103,1849.8,1849.7,40.8]
[1746106283643,3.2078,1849.8,1849.3,3.646]
[1746106283848,1.08121,1849.5,1849.4,12.16456672]
[1746106284148,1.08134,1849.3,1849.1,3.2078]
[1746106284337,1.08132,1849.3,1849.2,12.16456672]
[1746106284544,1.08138,1849.2,1849.0,1.08146]
[1746106285238,3.2078,1849.3,1848.9,1.624]
[1746106285441,1.08138,1849.2,1849.0,13.24604672]
[1746106285650,1.08138,1849.2,1849.1,12.16456672]
[1746106285851,1.08138,1849.2,1849.0,1.08148]
[1746106286044,1.08138,1849.2,1849.1,12.16456672]
[1746106286243,1.08147,1849.1,1849.0,12.16456672]
[1746106286440,1.08143,1849.2,1849.0,54.04606672]
[1746106286641,4.28916,1849.3,1849.1,13.24600672]
[1746106286846,1.08138,1849.2,1849.1,12.16456672]
[1746106287146,1.08144,1849.1,1849.0,40.8]
[1746106287347,1.08152,1849.0,1848.8,1.08158]
[1746106287542,1.08152,1849.0,1848.7,6.8538]
[1746106287543,2.70408,1848.8,1848.2,10.6821524]
[1746106287752,1.08179,1848.5,1848.3,52.72440672]
[1746106287950,3.2078,1848.7,1848.6,10.84251672]
[1746106288150,1.08171,1848.7,1848.6,10.84251672]
[1746106288453,1.08185,1848.4,1848.3,40.8]
[1746106288653,1.08183,1848.5,1848.4,10.84251672]
[1746106288846,1.08197,1848.2,1848.0,1.08207]
[1746106289045,1.08197,1848.2,1848.1,10.84251672]
[1746106289553,1.08194,1848.3,1848.1,51.64251672]
[1746106289851,1.08197,1848.2,1848.1,51.64251672]
[1746106290246,1.08197,1848.2,1847.7,1.08222]
[1746106290247,1.08216,1847.9,1847.7,1.08222]
[1746106290447,1.08216,1847.9,1847.8,10.84251672]
[1746106290650,3.2078,1848.1,1847.8,51.64251672]
[1746106290848,3.648,1848.3,1848.0,10.84251672]
[1746106290849,6.8558,1848.3,1848.0,10.84251672]
[1746106291244,7.93773,1848.3,1848.1,11.92451672]
[1746106291445,1.08197,1848.2,1848.1,10.84251672]
[1746106291640,3.2078,1848.3,1847.9,1.5662]
[1746106291851,1.4981,1848.6,1848.2,10.84251672]
[1746106291852,8.3549,1848.6,1848.2,10.84251672]
[1746106292046,3.2078,1848.6,1848.5,11.92430672]
[1746106292549,4.28932,1849.0,1848.5,15.84251672]
[1746106292746,4.28932,1849.0,1848.9,10.84251672]
[1746106292949,1.08159,1848.9,1848.8,11.92413672]
[1746106293142,3.2078,1849.1,1848.9,11.92407672]
[1746106293353,1.0815,1849.0,1848.8,1.08162]
[1746106293555,1.0815,1849.0,1848.9,1.5749]
[1746106293750,1.0815,1849.0,1848.9,13.49897672]
[1746106293950,1.0815,1849.0,1848.9,1.5749]
[1746106294150,1.08167,1848.7,1848.4,3.649]
[1746106294457,1.08167,1848.7,1848.5,10.84251672]
[1746106294458,1.08176,1848.6,1848.5,10.84251672]
[1746106294651,3.2078,1848.7,1848.6,10.84251672]
[1746106294850,3.2078,1848.7,1848.6,11.92424672]
[1746106295457,2.70354,1849.2,1848.6,11.92424672]
[1746106295458,1.08164,1848.8,1848.6,11.92424672]
[1746106295658,1.08164,1848.8,1848.6,2.68053]
[1746106295848,1.08151,1849.0,1848.9,1.08153]
[1746106296058,1.08148,1849.1,1849.0,10.84251672]
[1746106296249,5.9114,1849.2,1848.9,10.84251672]
[1746106296452,1.0815,1849.0,1848.9,10.84251672]
[1746106296645,1.08162,1848.8,1848.7,1.5988]
[1746106296847,1.08162,1848.8,1848.7,10.84251672]
[1746106297053,1.08173,1848.6,1848.5,3.788]
[1746106297250,1.08185,1848.4,1848.3,1.08187]
[1746106297453,1.08185,1848.4,1848.3,43.48067]
[1746106297654,4.28951,1848.7,1848.6,1.08173]
[1746106297854,3.2078,1848.7,1848.6,11.92424672]
[1746106298253,3.2078,1849.1,1848.6,19.05031672]
[1746106298461,1.08156,1849.0,1848.9,10.84251672]
[1746106298854,1.08156,1849.0,1848.9,42.4127]
[1746106299157,2.66996,1849.0,1848.9,40.8]
[1746106299461,2.66996,1849.0,1848.1,5.40993]
[1746106299462,2.7039,1848.9,1848.3,3.65]
[1746106299659,1.5884,1848.8,1848.7,1.08167]
[1746106299854,1.5884,1848.8,1848.7,11.92418672]
[1746106300060,3.2078,1848.9,1848.8,1.08162]
[1746106300260,3.2078,1848.9,1848.8,13.53683672]
[1746106300463,4.28936,1848.9,1848.8,13.53683672]
[1746106300658,4.28936,1848.9,1848.8,12.45521672]
[1746106300955,4.28936,1848.9,1848.8,13.53683672]
[1746106301149,5.91173,1848.9,1848.5,1.5025]
[1746106301363,1.08167,1848.7,1848.6,10.84251672]
[1746106301756,1.08167,1848.7,1848.6,1.08173]
[1746106301956,2.68106,1848.8,1848.7,1.08167]
[1746106302155,2.68106,1848.8,1848.7,13.49468672]
[1746106302355,3.2078,1848.9,1848.8,1.08162]
[1746106302552,5.88862,1849.2,1849.1,1.08144]
[1746106302756,5.88862,1849.2,1849.1,11.92395672]
[1746106302955,5.88862,1849.2,1849.1,1.08144]
[1746106303161,1.0815,1849.0,1848.9,2.65203]
[1746106303459,1.0815,1849.0,1848.9,1.5705]
[1746106303662,1.08162,1848.8,1848.7,8.01745]
[1746106303866,2.681,1848.9,1848.8,11.92413672]
[1746106304056,2.681,1848.9,1848.8,12.41301672]
[1746106304256,2.681,1848.9,1848.8,1.5705]
[1746106304461,1.08162,1848.8,1848.7,4.28943]
[1746106304758,3.2078,1849.2,1848.8,11.92413672]
[1746106304951,1.08149,1849.1,1849.0,10.84251672]
[1746106305156,2.76929,1849.1,1849.0,10.84251672]
[1746106305356,2.76929,1849.1,1849.0,1.0815]
[1746106305773,1.08162,1848.9,1848.8,1.08159]
[1746106305975,1.08155,1849.0,1848.9,11.92404672]
[1746106306167,1.0816,1848.9,1848.7,1.6265]
[1746106306369,1.6878,1849.0,1848.9,11.05714744]
[1746106306564,5.97702,1849.2,1848.9,9.97558744]
[1746106306763,5.97702,1849.2,1849.1,11.05702744]
[1746106307169,5.97702,1849.2,1849.1,1.08144]
[1746106307365,4.8956,1849.2,1848.8,40.8]
[1746106307576,1.08148,1849.1,1849.0,9.97558744]
[1746106307774,2.67578,1849.1,1849.0,9.97558744]
[1746106307974,1.0815,1849.0,1848.9,2.73181]
[1746106308371,1.0815,1849.0,1848.9,12.70739744]
[1746106308674,1.08156,1848.9,1848.8,41.88157]
[1746106308873,1.08173,1848.6,1848.5,1.5025]
[1746106309171,1.08173,1848.6,1848.5,11.62588744]
[1746106309372,1.08185,1848.4,1848.3,4.80988]
[1746106309876,1.08185,1848.4,1848.1,69.46704]
[1746106309877,1.08203,1848.1,1848.0,40.8]
[1746106310064,5.91294,1848.1,1847.5,6.9358]
[1746106310267,5.91348,1847.7,1847.2,9.9867]
[1746106310573,1.08242,1847.5,1847.4,1.08244]
[1746106310871,1.08244,1847.4,1847.3,40.8]
[1746106311265,1.08244,1847.4,1847.3,54.56358744]
[1746106311766,4.29024,1847.4,1847.3,3.788]
[1746106311974,4.29024,1847.4,1846.9,6.9358]
[1746106311975,2.70627,1847.3,1846.7,3.2078]
[1746106312172,1.08267,1847.0,1846.9,9.97558744]
[1746106312472,1.08279,1846.8,1846.7,13.76358744]
[1746106312677,4.29059,1846.8,1846.7,3.788]
[1746106312874,1.08279,1846.8,1846.7,3.788]
[1746106313171,4.29059,1846.8,1846.7,3.788]
[1746106313376,12.4966,1846.8,1845.8,3.2078]
[1746106313676,3.2078,1846.6,1846.2,9.97558744]
[1746106313876,1.6554,1846.5,1846.4,9.97558744]
[1746106314078,4.29074,1846.6,1846.5,9.97558744]
[1746106314379,1.08296,1846.5,1846.4,13.76358744]
[1746106314780,4.8632,1846.6,1846.4,13.76358744]
[1746106314984,3.2078,1846.6,1846.5,9.97558744]
[1746106315176,4.2907,1846.6,1846.5,9.97558744]
[1746106315377,5.94612,1846.6,1846.4,4.871]
[1746106315577,4.8632,1846.6,1846.5,9.97558744]
[1746106315777,4.8632,1846.6,1846.5,11.05854744]
[1746106315977,3.2078,1846.6,1846.5,11.05854744]
[1746106316177,4.2907,1846.6,1846.5,13.76358744]
[1746106316677,3.2078,1846.6,1846.5,55.64654744]
[1746106317080,0.27072391,1847.9,1846.5,116.389]
[1746106317272,5.91148,1849.1,1847.8,13.18338744]
[1746106317475,7.09404139,1848.2,1848.1,1.08203]
[1746106317681,7.09404139,1848.2,1848.1,4.28983]
[1746106317874,7.09404139,1848.2,1848.1,14.26541744]
[1746106318580,7.09404139,1848.2,1847.9,3.2078]
[1746106318781,1.08208,1848.0,1847.9,3.2078]
[1746106319187,1.08208,1848.0,1847.9,6.9958]
[1746106319378,1.08208,1848.0,1847.9,3.788]
[1746106319579,1.08208,1848.0,1847.9,44.588]
[1746106320382,7.09404139,1848.2,1848.0,1.08207]
[1746106320586,8.17601139,1848.2,1848.1,9.97558744]
[1746106320881,4.012,1848.8,1848.1,13.18338744]
[1746106321084,1.08173,1848.6,1848.4,1.08183]
[1746106321278,7.2198,1848.8,1848.5,50.77558744]
[1746106321479,1.0817,1848.7,1848.6,9.97558744]
[1746106321682,1.08173,1848.6,1848.5,40.8]
[1746106321882,4.28953,1848.6,1848.5,40.8]
[1746106322088,1.08203,1848.1,1848.0,3.788]
[1746106322386,2.7047,1848.4,1847.7,1.08223]
[1746106322387,1.08208,1848.0,1847.8,1.0822]
[1746106322581,1.08208,1848.0,1847.9,50.77558744]
[1746106322786,5.87183,1848.3,1848.0,1.08203]
[1746106322983,5.87183,1848.3,1848.2,9.97558744]
[1746106323180,4.28973,1848.3,1848.2,9.97558744]
[1746106323386,3.2078,1848.3,1848.2,9.97558744]
[1746106323587,4.28971,1848.3,1848.2,9.97558744]
[1746106323785,3.2078,1848.3,1848.2,11.05755744]
[1746106323985,8.8019,1848.8,1848.6,1.08171]
[1746106324184,1.0816,1848.9,1848.7,14.26504744]
[1746106324386,1.08162,1848.8,1848.7,13.18338744]
[1746106324581,1.5821,1849.1,1848.7,13.18338744]
[1746106324783,1.5821,1849.1,1848.7,14.26504744]
[1746106324784,1.08158,1848.9,1848.7,14.26504744]
[1746106325181,1.08156,1849.0,1848.8,9.97558744]
[1746106325379,1.0815,1849.0,1848.9,9.97558744]
[1746106325584,3.2078,1849.2,1848.9,9.97558744]
[1746106325887,1.08162,1848.8,1848.7,3.2078]
[1746106326083,1.08162,1848.8,1848.6,1.08172]
[1746106326084,1.08175,1848.6,1848.4,3.2078]
[1746106326288,1.08175,1848.6,1848.5,4.28959]
[1746106326490,4.40745,1848.9,1848.5,13.18338744]
[1746106326676,4.40745,1848.9,1848.4,1.08181]
[1746106326677,2.70408,1848.8,1848.6,13.18338744]
[1746106326884,2.78517,1848.7,1848.6,9.97558744]
[1746106327186,1.08185,1848.4,1848.3,3.2078]
[1746106327386,1.08185,1848.4,1848.3,4.9369]
[1746106327587,1.08185,1848.4,1848.3,14.91248744]
[1746106327890,1.08185,1848.4,1848.3,4.9369]
[1746106328083,1.08185,1848.4,1848.3,1.7291]
[1746106328284,2.78535,1848.4,1848.3,14.91248744]
[1746106328690,5.09284,1848.5,1848.3,15.99435744]
[1746106328890,5.09284,1848.5,1848.4,1.567]
[1746106329188,1.08185,1848.4,1848.3,3.2078]
[1746106329388,2.76315,1848.4,1848.3,3.2078]
[1746106329690,1.08197,1848.2,1848.1,2.64903]
[1746106329989,1.08188,1848.4,1848.3,9.97558744]
[1746106330285,1.08191,1848.3,1848.2,11.54258744]
[1746106330485,5.40775,1849.0,1848.2,11.54258744]
[1746106330486,2.70375,1849.0,1848.6,1.08172]
[1746106330788,1.08162,1848.8,1848.7,13.18338744]
[1746106332086,1.08162,1848.8,1848.7,14.26505744]
[1746106332293,1.08162,1848.8,1848.7,16.97138744]
[1746106332480,2.70349,1849.2,1848.7,16.97138744]
[1746106332684,1.08138,1849.2,1849.1,9.97558744]
[1746106333085,1.0815,1849.0,1848.9,1.08153]
[1746106333286,1.08138,1849.2,1849.1,9.97558744]
[1746106333593,1.08138,1849.2,1849.1,14.26482744]
[1746106333888,1.08129,1849.4,1849.3,1.08128]
[1746106334094,1.08129,1849.4,1849.3,4.28908]
[1746106334386,1.08129,1849.4,1849.3,13.18338744]
[1746106334590,1.08129,1849.4,1849.3,14.26470744]
[1746106335085,1.08125,1849.5,1849.4,1.08124]
[1746106335288,1.08124,1849.5,1849.4,1.08124]
[1746106335483,1.08124,1849.5,1849.4,9.97558744]
[1746106336286,1.08132,1849.3,1849.2,6.9958]
[1746106336483,1.08126,1849.5,1849.4,11.05684744]
[1746106336787,1.08121,1849.5,1849.4,14.26462744]
[1746106336988,2.70229,1850.0,1849.4,20.88653744]
[1746106337192,1.08097,1849.9,1849.8,9.97558744]
[1746106337590,1.08109,1849.7,1849.6,3.2078]
[1746106337890,1.08097,1849.9,1849.8,9.97558744]
[1746106338091,8.35635,1850.1,1849.8,3.2078]
[1746106338398,8.35635,1850.1,1849.8,13.18338744]
[1746106338399,1.08097,1849.9,1849.8,13.18338744]
[1746106338794,1.08097,1849.9,1849.8,14.26441744]
[1746106338990,1.08097,1849.9,1849.4,4.31644]
[1746106338991,12.2178,1849.9,1849.4,3.2078]
[1746106339189,12.2178,1849.9,1849.1,40.8]
[1746106339190,1.08138,1849.2,1849.1,40.8]
[1746106339395,2.70346,1849.2,1848.8,3.2078]
[1746106339695,1.08167,1848.7,1848.6,4.8211]
[1746106339889,1.08167,1848.7,1848.6,45.6211]
[1746106340201,1.08167,1848.7,1848.6,60.59668744]
[1746106340884,1.08167,1848.7,1848.6,53.98338744]
[1746106341485,2.70384,1849.0,1848.6,53.98338744]
[1746106341688,2.70303,1849.5,1849.1,1.08141]
[1746106341891,1.08121,1849.5,1849.4,13.18338744]
[1746106342289,6.71192,1850.3,1849.4,13.18338744]
[1746106342494,1.08097,1849.9,1849.8,3.2078]
[1746106343496,5.34874021,1849.9,1849.8,13.18338744]
[1746106343696,4.8667816,1850.1,1850.0,1.08091]
[1746106343898,8.90714895,1850.3,1850.0,1.08091]
[1746106343899,8.90714895,1850.3,1850.2,1.0808]
[1746106344095,8.90714895,1850.3,1850.2,64.27518744]
[1746106344399,1.08038,1851.0,1850.8,1.0804]
[1746106344695,1.08025,1851.2,1851.1,9.97558744]
[1746106344896,1.08014,1851.4,1851.1,13.18338744]
[1746106345099,1.08014,1851.4,1851.3,3.2078]
[1746106345289,1.08006,1851.5,1851.3,13.18338744]
[1746106345598,1.08006,1851.5,1851.4,9.97558744]
[1746106345897,4.8771,1851.8,1851.4,9.97558744]
[1746106346093,1.08004,1851.5,1851.4,9.97558744]
[1746106346299,1.08004,1851.5,1851.4,3.788]
[1746106346594,1.08004,1851.5,1851.4,13.76358744]
[1746106346992,1.08004,1851.5,1851.4,54.56358744]
[1746106347190,1.08004,1851.5,1851.4,56.19828744]
[1746106347787,10.76802867,1851.9,1851.5,1.08001]
[1746106347996,1.0798,1851.9,1851.8,13.18338744]
[1746106348692,1.07992,1851.7,1851.6,4.8425]
[1746106348991,1.07992,1851.7,1851.6,14.81808744]
[1746106349194,1.08004,1851.5,1851.4,40.8]
[1746106349892,1.08027,1851.1,1851.0,4.8425]
[1746106350291,1.08027,1851.1,1851.0,45.6425]
[1746106350795,1.08027,1851.1,1851.0,3.2078]
[1746106351185,1.08045,1850.8,1850.7,4.7901]
[1746106351385,1.08045,1850.8,1850.7,44.0078]
[1746106351592,1.08056,1850.6,1850.5,1.5823]
[1746106351993,1.08062,1850.5,1850.4,3.2078]
[1746106352194,1.08062,1850.5,1850.4,40.8]
[1746106352594,2.73902,1850.5,1850.4,40.8]
[1746106352797,1.08074,1850.3,1850.2,3.2078]
[1746106354198,2.70216,1850.1,1849.7,3.2078]
[1746106354396,1.08086,1850.1,1850.0,9.97558744]
[1746106354591,1.08103,1849.8,1849.7,4.883]
[1746106355094,2.70273,1849.8,1849.4,3.2078]
[1746106355301,1.6402,1849.7,1849.5,9.97558744]
[1746106355495,1.08126,1849.4,1849.3,3.2078]
[1746106355895,1.08138,1849.2,1849.1,1.6752]
[1746106356097,1.08138,1849.2,1849.1,14.85858744]
[1746106356501,1.08137,1849.3,1849.1,55.65858744]
[1746106356697,4.86929,1849.4,1849.3,9.97558744]
[1746106357000,4.86929,1849.4,1849.3,13.18338744]
[1746106357202,1.08129,1849.4,1849.3,13.18338744]
[1746106357998,1.08129,1849.4,1849.3,9.97558744]
[1746106358206,1.08129,1849.4,1849.3,13.18338744]
[1746106358905,1.08102,1849.9,1849.7,1.08106]
[1746106359095,1.08102,1849.9,1849.8,14.80078744]
[1746106359801,1.08102,1849.9,1849.8,4.8252]
[1746106359998,1.08102,1849.9,1849.8,1.6174]
[1746106360202,1.08115,1849.6,1849.5,3.2078]
[1746106360404,1.08115,1849.6,1849.5,4.8252]
[1746106360704,1.08115,1849.6,1849.5,14.80078744]
[1746106360998,1.08105,1849.8,1849.6,1.0811]
[1746106361205,1.08105,1849.8,1849.7,4.8252]
[1746106361397,1.08105,1849.8,1849.7,14.80078744]
[1746106362109,1.08105,1849.8,1849.7,18.58878744]
[1746106362803,1.08105,1849.8,1849.7,6.9958]
[1746106363098,6.08105,1849.8,1849.7,3.788]
[1746106363303,1.08138,1849.2,1849.1,44.0078]
[1746106363805,1.08138,1849.2,1849.1,53.98338744]
[1746106364001,1.08138,1849.2,1849.1,13.18338744]
[1746106364303,1.08144,1849.1,1849.0,1.6733]